bitfinex-derivatives/quotes_BNBF0:USTF0_20250220
["timestamp","ask_amount","ask_price","bid_price","bid_amount"]
[1740032962981,0.28361321,648.65,646.85,0.30919069]
[1740032963181,0.30834219,648.63,646.85,0.30919069]
[1740032963381,0.28361321,648.62,646.85,0.30919069]
[1740032963678,0.30835646,648.6,646.85,0.30919069]
[1740032964184,0.28360961,648.59,646.85,0.30919069]
[1740032964385,0.30836596,648.58,646.85,0.30919069]
[1740032964581,0.28360961,648.57,646.85,0.30919069]
[1740032964783,0.30838023,648.55,646.85,0.30919069]
[1740032964977,0.28360961,648.54,646.85,0.30919069]
[1740032965184,0.30839449,648.52,646.85,0.30919069]
[1740032965384,0.28360961,648.51,646.85,0.30919069]
[1740032965587,0.30840876,648.49,646.85,0.30919069]
[1740032965783,0.28360961,648.48,646.85,0.30919069]
[1740032965979,0.30841827,648.47,646.85,0.30919069]
[1740032974289,0.28364104,648.46,646.85,0.30919069]
[1740032974489,0.30842778,648.45,646.85,0.30919069]
[1740032974683,0.28364104,648.44,646.85,0.30919069]
[1740032974889,0.3084373,648.43,646.85,0.30919069]
[1740032975085,0.28364104,648.42,646.85,0.30919069]
[1740032975283,0.30844681,648.41,646.85,0.30919069]
[1740032975485,0.28364137,648.4,646.85,0.30919069]
[1740032975687,0.30846108,648.38,646.85,0.30919069]
[1740032975890,0.28364137,648.37,646.85,0.30919069]
[1740032976191,0.3084706,648.36,646.85,0.30919069]
[1740032976491,0.28364137,648.35,646.85,0.30919069]
[1740032976691,0.30848011,648.34,646.85,0.30919069]
[1740032976887,0.28364137,648.33,646.85,0.30919069]
[1740032977086,0.30848963,648.32,646.85,0.30919069]
[1740032977288,0.28364137,648.31,646.85,0.30919069]
[1740032977486,0.30849915,648.3,646.85,0.30919069]
[1740032977688,0.28364137,648.29,646.85,0.30919069]
[1740032977890,0.30850866,648.28,646.85,0.30919069]
[1740032978394,0.28373263,648.27,646.85,0.30919069]
[1740032978589,0.30851818,648.26,646.85,0.30919069]
[1740032978789,0.28373263,648.25,646.85,0.30919069]
[1740032978987,0.3085277,648.24,646.85,0.30919069]
[1740032983499,0.28374001,648.23,646.85,0.30919069]
[1740032983701,0.30853722,648.22,646.85,0.30919069]
[1740032983999,0.28373535,648.21,646.85,0.30919069]
[1740032984195,0.30854674,648.2,646.85,0.30919069]
[1740032984598,0.28374108,648.19,646.85,0.30919069]
[1740032984797,0.30855626,648.18,646.85,0.30919069]
[1740032984993,0.28374108,648.17,646.85,0.30919069]
[1740032985193,0.30856578,648.16,646.85,0.30919069]
[1740032985396,0.28374108,648.15,646.85,0.30919069]
[1740032985601,0.3085753,648.14,646.85,0.30919069]
[1740032985802,0.28374108,648.13,646.85,0.30919069]
[1740032986100,0.30858482,648.12,646.85,0.30919069]
[1740032987594,0.28374037,648.11,646.85,0.30919069]
[1740032987898,0.30859435,648.1,646.85,0.30919069]
[1740032988093,0.28374037,648.09,646.85,0.30919069]
[1740032988295,0.30860387,648.08,646.85,0.30919069]
[1740032988496,0.28374037,648.07,646.85,0.30919069]
[1740032988696,0.30861339,648.06,646.85,0.30919069]
[1740032988896,0.28374037,648.05,646.85,0.30919069]
[1740032989096,0.59235853,648.05,646.85,0.30919069]
[1740032989294,0.28374037,648.04,646.85,0.30919069]
[1740032993201,0.30861816,648.05,646.85,0.30919069]
[1740032999603,0.28372316,648.04,646.85,0.30919069]
[1740033000204,0.30861816,648.05,646.85,0.30919069]
[1740033000911,0.28372664,648.04,646.85,0.30919069]
[1740033001311,0.30862768,648.03,646.85,0.30919069]
[1740033004110,0.2837484,648.02,646.85,0.30919069]
[1740033006620,0.30863721,648.01,646.85,0.30919069]
[1740033006810,0.2837484,648.0,646.85,0.30919069]
[1740033007315,0.28377895,647.99,646.85,0.30919069]
[1740033007513,0.28377895,648.0,646.85,0.30919069]
[1740033007818,0.28377895,647.99,646.85,0.30919069]
[1740033008017,0.28377895,648.0,646.85,0.30919069]
[1740033008219,0.28375973,647.99,646.85,0.30919069]
[1740033008513,0.30863721,648.01,646.85,0.30919069]
[1740033008720,0.28378061,648.0,646.85,0.30919069]
[1740033010918,0.30863721,648.01,646.85,0.30919069]
[1740033018622,0.28375437,648.0,646.85,0.30919069]
[1740033020822,0.30863721,648.01,646.85,0.30919069]
[1740033021029,0.28377931,648.0,646.85,0.30919069]
[1740033021624,0.59242128,648.0,646.85,0.30919069]
[1740033021821,0.28377931,647.99,646.85,0.30919069]
[1740033028025,0.30864197,648.0,646.85,0.30919069]
[1740033045934,1.14469916,649.04,646.85,0.30919069]
[1740033046138,0.3081949,648.94,646.85,0.30919069]
[1740033046338,0.28361105,648.93,646.85,0.30919069]
[1740033046537,0.30820915,648.91,646.85,0.30919069]
[1740033046734,0.28361105,648.9,646.85,0.30919069]
[1740033046937,0.3082234,648.88,646.85,0.30919069]
[1740033047139,0.28361105,648.87,646.85,0.30919069]
[1740033047336,0.30823765,648.85,646.85,0.30919069]
[1740033047542,0.28361105,648.84,646.85,0.30919069]
[1740033047741,0.3082519,648.82,646.85,0.30919069]
[1740033047942,0.28361105,648.81,646.85,0.30919069]
[1740033049143,0.30826615,648.79,646.85,0.30919069]
[1740033049344,0.28361105,648.78,646.85,0.30919069]
[1740033049544,0.30828041,648.76,646.85,0.30919069]
[1740033049845,0.28361105,648.75,646.85,0.30919069]
[1740033050046,0.30829466,648.73,646.85,0.30919069]
[1740033060856,0.28352612,648.72,646.85,0.30919069]
[1740033061058,0.30830417,648.71,646.85,0.30919069]
[1740033061260,0.28352612,648.7,646.85,0.30919069]
[1740033061960,0.28350883,648.69,646.85,0.30919069]
[1740033062153,0.28350883,648.7,646.85,0.30919069]
[1740033062352,0.28350883,648.69,646.85,0.30919069]
[1740033062653,0.59182726,648.68,646.85,0.30919069]
[1740033062851,0.30831843,648.68,646.85,0.30919069]
[1740033073462,0.2834341,648.67,646.85,0.30919069]
[1740033075469,0.30831843,648.68,646.85,0.30919069]
[1740033075669,0.28343191,648.67,646.85,0.30919069]
[1740033078372,0.28343191,648.67,646.85,1.46172414]
[1740033080171,0.30831843,648.68,646.85,1.46172414]
[1740033080374,0.28342577,648.67,646.85,1.46172414]
[1740033080574,0.30831843,648.68,646.85,1.46172414]
[1740033081176,0.30831843,648.68,646.92,1.15253345]
[1740033081369,0.30831843,648.68,646.94,0.30914767]
[1740033084885,0.30831843,648.68,646.96,1.15253345]
[1740033085077,0.30831843,648.68,646.98,0.30912856]
[1740033085273,0.28342471,648.67,646.98,0.30912856]
[1740033085681,0.30831843,648.68,646.98,0.30912856]
[1740033087483,0.30831843,648.68,647.03,1.15253345]
[1740033087682,0.30831843,648.68,647.05,0.30909512]
[1740033089283,0.30831843,648.68,647.1,1.15253345]
[1740033089477,0.30831843,648.68,647.12,0.30906168]
[1740033090882,1.14469916,649.16,647.12,0.30906168]
[1740033091080,0.59145725,649.15,647.12,0.30906168]
[1740033091281,0.28336366,649.14,647.12,0.30906168]
[1740033091481,0.30810469,649.13,647.12,0.30906168]
[1740033091681,0.28336366,649.12,647.14,1.15253345]
[1740033091877,0.28336366,649.12,647.16,0.30904258]
[1740033092083,0.30811418,649.11,647.16,0.30904258]
[1740033092282,0.28336366,649.1,647.16,0.30904258]
[1740033092683,0.30812368,649.09,647.16,0.30904258]
[1740033092879,0.28336366,649.08,647.16,0.30904258]
[1740033093080,0.30813317,649.07,647.16,0.30904258]
[1740033093284,0.28336366,649.06,647.16,0.30904258]
[1740033093486,0.30814267,649.05,647.16,0.30904258]
[1740033093685,0.28336366,649.04,647.16,0.30904258]
[1740033093882,0.30815216,649.03,647.16,0.30904258]
[1740033094085,0.28336366,649.02,647.16,0.30904258]
[1740033094683,0.30815216,649.03,647.16,0.30904258]
[1740033094886,0.28336647,649.02,647.16,0.30904258]
[1740033095082,0.30816166,649.01,647.16,0.30904258]
[1740033095284,0.28336647,649.0,647.16,0.30904258]
[1740033095490,0.30817115,648.99,647.16,0.30904258]
[1740033095685,0.28336647,648.98,647.16,0.30904258]
[1740033096790,0.28336647,648.98,647.21,1.15253345]
[1740033096986,0.28336647,648.98,647.23,0.30900916]
[1740033099388,0.28336647,648.98,647.29,1.15253345]
[1740033099588,0.28336647,648.98,647.31,0.30897097]
[1740033103588,0.28333021,648.97,647.31,0.30897097]
[1740033103793,0.28333021,648.98,647.4,1.15253345]
[1740033103989,0.28333021,648.97,647.42,0.30891847]
[1740033104190,0.28333021,648.98,647.42,0.30891847]
[1740033104395,0.28333021,648.97,647.42,0.30891847]
[1740033104695,0.28333021,648.96,647.42,0.30891847]
[1740033104894,0.28333021,648.98,647.42,0.30891847]
[1740033105088,0.28333021,648.97,647.42,0.30891847]
[1740033105293,0.28333021,648.98,647.42,0.30891847]
[1740033105489,0.28333021,648.97,647.42,0.30891847]
[1740033105687,0.28333021,648.96,647.42,0.30891847]
[1740033105889,0.28333021,648.98,647.42,0.30891847]
[1740033106092,0.28333021,648.97,647.42,0.30891847]
[1740033106297,0.28333021,648.98,647.42,0.30891847]
[1740033106496,0.28333021,648.97,647.42,0.30891847]
[1740033106690,0.28333021,648.98,647.42,0.30891847]
[1740033106893,0.28333021,648.97,647.42,0.30891847]
[1740033107093,0.28333307,648.96,647.42,0.30891847]
[1740033107294,0.28333307,648.98,647.42,0.30891847]
[1740033107496,0.28333307,648.97,647.42,0.30891847]
[1740033107697,0.28333307,648.98,647.42,0.30891847]
[1740033107894,0.28333307,648.97,647.42,0.30891847]
[1740033108093,0.28333307,648.98,647.42,0.30891847]
[1740033108397,0.28333307,648.97,647.42,0.30891847]
[1740033108598,0.28333307,648.98,647.42,0.30891847]
[1740033108799,0.28333307,648.97,647.42,0.30891847]
[1740033108997,0.28333307,648.98,647.42,0.30891847]
[1740033109199,0.28333307,648.97,647.42,0.30891847]
[1740033109398,0.28333307,648.98,647.42,0.30891847]
[1740033109597,0.28333307,648.97,647.42,0.30891847]
[1740033109797,0.28333307,648.98,647.42,0.30891847]
[1740033109995,0.28333307,648.97,647.42,0.30891847]
[1740033110197,0.30817115,648.99,647.42,0.30891847]
[1740033110398,0.28331031,648.98,647.42,0.30891847]
[1740033110994,0.28331031,648.98,647.44,1.15253345]
[1740033111196,0.28331031,648.98,647.46,0.30889939]
[1740033111400,0.30817115,648.99,647.46,0.30889939]
[1740033115801,0.30365101,648.99,647.46,0.30889939]
[1740033122613,1.14469916,649.9,647.46,0.30889939]
[1740033122813,0.30779174,649.79,647.46,0.30889939]
[1740033123014,0.28321065,649.78,647.46,0.30889939]
[1740033123215,0.30780595,649.76,647.46,0.30889939]
[1740033123410,0.28321065,649.75,647.46,0.30889939]
[1740033123616,0.30782017,649.73,647.46,0.30889939]
[1740033123810,0.28321065,649.72,647.46,0.30889939]
[1740033124011,0.30783438,649.7,647.46,0.30889939]
[1740033124217,0.28321065,649.69,647.46,0.30889939]
[1740033124414,0.3078486,649.67,647.46,0.30889939]
[1740033125018,0.28321285,649.66,647.46,0.30889939]
[1740033125216,0.30786281,649.64,647.46,0.30889939]
[1740033125417,0.28321285,649.63,647.46,0.30889939]
[1740033125820,0.30787703,649.61,647.46,0.30889939]
[1740033126020,0.28321285,649.6,647.46,0.30889939]
[1740033126320,0.30788651,649.59,647.46,0.30889939]
[1740033126523,0.28321285,649.58,647.46,0.30889939]
[1740033126721,0.30789599,649.57,647.46,0.30889939]
[1740033126916,0.28321285,649.56,647.46,0.30889939]
[1740033127113,0.30790547,649.55,647.46,0.30889939]
[1740033127320,0.28321285,649.54,647.46,0.30889939]
[1740033127618,0.30791495,649.53,647.46,0.30889939]
[1740033127816,0.28321285,649.52,647.46,0.30889939]
[1740033128121,0.30792443,649.51,647.46,0.30889939]
[1740033128322,0.28321285,649.5,647.46,0.30889939]
[1740033128619,0.30793391,649.49,647.46,0.30889939]
[1740033128820,0.28321285,649.48,647.46,0.30889939]
[1740033129021,0.3079434,649.47,647.46,0.30889939]
[1740033129222,0.28321285,649.46,647.46,0.30889939]
[1740033129617,0.30795288,649.45,647.46,0.30889939]
[1740033130022,0.28321285,649.44,647.46,0.30889939]
[1740033130317,0.30796236,649.43,647.46,0.30889939]
[1740033131726,0.28316941,649.42,647.46,0.30889939]
[1740033131920,0.30796236,649.43,647.46,0.30889939]
[1740033140829,0.28315811,649.42,647.46,0.30889939]
[1740033142825,0.28315811,649.42,647.56,1.15253345]
[1740033143027,0.28315811,649.42,647.58,0.30884215]
[1740033145430,0.591145,649.41,647.58,0.30884215]
[1740033145630,0.59114974,649.4,647.58,0.30884215]
[1740033145823,0.28317315,649.39,647.58,0.30884215]
[1740033147131,0.30797659,649.4,647.58,0.30884215]
[1740033147331,0.2831711,649.39,647.58,0.30884215]
[1740033148732,0.30797659,649.4,647.6,1.15253345]
[1740033149133,0.28316779,649.39,647.62,0.30882307]
[1740033149536,0.30797659,649.4,647.62,0.30882307]
[1740033149731,0.28316876,649.39,647.62,0.30882307]
[1740033150735,0.28316876,649.39,647.64,1.15253345]
[1740033150936,0.28316876,649.39,647.66,0.308804]
[1740033153041,0.28316876,649.39,647.72,1.15253345]
[1740033153536,0.28316876,649.39,647.74,0.30876586]
[1740033155643,0.28316876,649.39,647.81,1.15253345]
[1740033155843,0.30797659,649.4,647.83,0.30872296]
[1740033156039,0.28315524,649.39,647.83,0.30872296]
[1740033156343,0.30797659,649.4,647.83,0.30872296]
[1740033158445,0.30797659,649.4,647.94,1.15253345]
[1740033158644,0.30797659,649.4,647.96,0.30866102]
[1740033161447,0.30797659,649.4,648.01,1.15253345]
[1740033161747,0.30797659,649.4,648.03,0.30862768]
[1740033164446,0.28313566,649.39,648.03,0.30862768]
[1740033164653,0.30798133,649.39,648.03,0.30862768]
[1740033165954,0.28322996,649.38,648.03,0.30862768]
[1740033166255,0.30799082,649.37,648.03,0.30862768]
[1740033166554,0.28322943,649.36,648.03,0.30862768]
[1740033166749,0.3080003,649.35,648.03,0.30862768]
[1740033166951,0.28322943,649.34,648.03,0.30862768]
[1740033167149,0.30800979,649.33,648.03,0.30862768]
[1740033167552,0.28325703,649.32,648.03,0.30862768]
[1740033167752,0.30801928,649.31,648.03,0.30862768]
[1740033168160,0.2832705,649.3,648.03,0.30862768]
[1740033168355,0.30802876,649.29,648.03,0.30862768]
[1740033168550,0.2832705,649.28,648.03,0.30862768]
[1740033169055,0.30803825,649.27,648.03,0.30862768]
[1740033169354,0.2832705,649.26,648.03,0.30862768]
[1740033169554,0.30804774,649.25,648.03,0.30862768]
[1740033169754,0.2832705,649.24,648.03,0.30862768]
[1740033169953,0.59133724,649.23,648.03,0.30862768]
[1740033170256,0.59134199,649.22,648.03,0.30862768]
[1740033170457,0.59134673,649.21,648.03,0.30862768]
[1740033170756,0.59135042,649.2,648.03,0.30862768]
[1740033170956,0.59135516,649.19,648.03,0.30862768]
[1740033171157,0.59135991,649.18,648.03,0.30862768]
[1740033171357,0.59136465,649.17,648.03,0.30862768]
[1740033171552,0.30809045,649.16,648.03,0.30862768]
[1740033171757,0.28327842,649.15,648.03,0.30862768]
[1740033171957,0.30809994,649.14,648.03,0.30862768]
[1740033172153,0.28327842,649.13,648.03,0.30862768]
[1740033172357,0.59138311,649.13,648.03,0.30862768]
[1740033172659,0.28327842,649.12,648.03,0.30862768]
[1740033173257,0.30810469,649.13,648.03,0.30862768]
[1740033173457,0.28328189,649.12,648.03,0.30862768]
[1740033175063,0.30810469,649.13,648.03,0.30862768]
[1740033175260,0.28326382,649.12,648.03,0.30862768]
[1740033176964,0.28326486,649.11,648.03,0.30862768]
[1740033177164,0.28326486,649.1,648.03,0.30862768]
[1740033177364,0.30810469,649.13,648.03,0.30862768]
[1740033184371,0.283265,649.12,648.03,0.30862768]
[1740033185470,0.30811418,649.11,648.03,0.30862768]
[1740033185670,0.283265,649.1,648.03,0.30862768]
[1740033185871,0.59138393,649.1,648.03,0.30862768]
[1740033186063,0.283265,649.09,648.03,0.30862768]
[1740033186672,0.30811893,649.1,648.03,0.30862768]
[1740033186873,0.28328416,649.09,648.03,0.30862768]
[1740033187066,0.30811893,649.1,648.03,0.30862768]
[1740033187270,0.28328463,649.09,648.03,0.30862768]
[1740033188470,0.30811893,649.1,648.03,0.30862768]
[1740033188775,0.28328527,649.09,648.03,0.30862768]
[1740033189175,0.30811893,649.1,647.39,1.15253345]
[1740033189372,0.30812842,649.08,647.77,1.61028485]
[1740033189571,0.30812842,649.08,647.41,0.30892324]
[1740033189877,0.30812842,649.08,647.77,1.61007376]
[1740033190077,0.30812842,649.08,647.41,0.30892324]
[1740033190376,0.30812842,649.08,647.77,1.61007996]
[1740033190570,0.30812842,649.08,647.41,0.30892324]
[1740033190876,0.30812842,649.08,647.77,1.61009238]
[1740033191071,0.30812842,649.08,647.41,0.30892324]
[1740033191776,0.28333939,649.07,647.41,0.30892324]
[1740033191978,0.30813792,649.06,647.41,0.30892324]
[1740033192276,0.2833489,649.05,647.41,0.30892324]
[1740033192477,0.2833489,649.05,647.42,1.61106139]
[1740033192670,0.2833489,649.05,647.44,0.30890893]
[1740033192875,0.30814741,649.04,647.44,0.30890893]
[1740033193074,0.2833489,649.03,647.44,0.30890893]
[1740033193275,0.30815691,649.02,647.44,0.30890893]
[1740033193474,0.2833489,649.01,647.44,0.30890893]
[1740033193678,0.3081664,649.0,647.44,0.30890893]
[1740033193874,0.2833489,648.99,647.44,0.30890893]
[1740033194479,0.3081759,648.98,647.44,0.30890893]
[1740033194679,0.2833489,648.97,647.44,0.30890893]
[1740033194980,0.3081854,648.96,647.44,0.30890893]
[1740033195179,0.2833489,648.95,647.44,0.30890893]
[1740033195575,0.3081854,648.96,647.44,0.30890893]
[1740033196480,0.28335304,648.95,647.44,0.30890893]
[1740033196676,0.3081949,648.94,647.44,0.30890893]
[1740033199281,0.28337136,648.93,647.44,0.30890893]
[1740033199481,0.59157101,648.93,647.44,0.30890893]
[1740033199681,0.30819965,648.93,647.44,0.30890893]
[1740033200479,0.28337291,648.92,647.44,0.30890893]
[1740033200874,0.28338054,648.91,647.44,0.30890893]
[1740033201280,0.3082044,648.92,647.44,0.30890893]
[1740033206990,0.28334891,648.91,647.44,0.30890893]
[1740033209990,0.3082044,648.92,647.44,0.30890893]
[1740033216088,0.28333702,648.91,647.44,0.30890893]
[1740033218996,0.28333702,648.91,647.5,1.15253345]
[1740033219197,0.28333702,648.91,647.51,0.30887553]
[1740033219392,0.3082044,648.92,647.51,0.30887553]
[1740033219591,0.28333948,648.91,647.51,0.30887553]
[1740033221500,0.28333948,648.91,647.51,1.46140898]
[1740033223397,0.3082044,648.92,647.51,0.30887553]
[1740033223603,0.28334612,648.91,647.51,0.30887553]
[1740033226004,0.28334612,648.91,647.52,1.15253345]
[1740033226405,0.28334612,648.91,647.53,0.30886599]
[1740033226800,0.3082044,648.92,647.53,0.30886599]
[1740033227005,0.283362,648.91,647.53,0.30886599]
[1740033227404,0.3082044,648.92,647.53,0.30886599]
[1740033233001,0.28340392,648.91,647.53,0.30886599]
[1740033233206,0.3082139,648.9,647.53,0.30886599]
[1740033234612,0.28340499,648.89,647.53,0.30886599]
[1740033237016,0.30822815,648.87,647.53,0.30886599]
[1740033237207,0.28340499,648.86,647.53,0.30886599]
[1740033237615,0.3082424,648.84,647.53,0.30886599]
[1740033237815,0.28340499,648.83,647.53,0.30886599]
[1740033238017,0.30825665,648.81,647.53,0.30886599]
[1740033238210,0.28340499,648.8,647.53,0.30886599]
[1740033238411,0.3082709,648.78,647.53,0.30886599]
[1740033238616,0.28340499,648.77,647.53,0.30886599]
[1740033238813,0.30828041,648.76,647.53,0.30886599]
[1740033239014,0.28340499,648.75,647.53,0.30886599]
[1740033239214,0.59181987,648.74,647.53,0.30886599]
[1740033239416,0.59182462,648.73,647.53,0.30886599]
[1740033239719,0.59182938,648.72,647.53,0.30886599]
[1740033239916,0.59183413,648.71,647.05,1.15253345]
[1740033240117,1.14469916,648.94,647.05,1.15253345]
[1740033240118,0.30831367,648.69,647.33,1.61140952]
[1740033240313,0.28352996,648.68,647.33,1.61140952]
[1740033240517,0.30832793,648.66,647.06,0.30909034]
[1740033240818,0.28352996,648.65,647.33,1.61152145]
[1740033241018,0.30833744,648.64,647.06,0.30909034]
[1740033241218,0.28352996,648.63,647.07,1.61178269]
[1740033241414,0.30834695,648.62,647.08,0.30908079]
[1740033241718,0.28361875,648.61,647.08,0.30908079]
[1740033241914,0.30836121,648.59,647.08,0.30908079]
[1740033242113,0.28361875,648.58,647.08,0.30908079]
[1740033242318,0.30837547,648.56,647.08,0.30908079]
[1740033242518,0.28361875,648.55,647.08,0.30908079]
[1740033242720,0.30838974,648.53,647.08,0.30908079]
[1740033242915,0.28361875,648.52,647.08,0.30908079]
[1740033243124,0.308404,648.5,647.08,0.30908079]
[1740033243422,0.28361875,648.49,647.08,0.30908079]
[1740033243622,0.28361875,648.48,647.08,0.30908079]
[1740033243822,0.308404,648.5,647.08,0.30908079]
[1740033244024,0.28367998,648.49,647.08,0.30908079]
[1740033244220,0.30841827,648.47,647.08,0.30908079]
[1740033244424,0.28367998,648.46,647.08,0.30908079]
[1740033245618,0.30843254,648.44,647.08,0.30908079]
[1740033245823,0.28367998,648.43,647.08,0.30908079]
[1740033246425,0.28367998,648.43,645.93,1.15253345]
[1740033246826,0.28367998,648.43,646.84,1.61245482]
[1740033247125,0.28367998,648.43,645.94,3.06370587]
[1740033247325,0.28367998,648.42,646.84,1.61256067]
[1740033247524,0.28367998,648.41,645.94,3.06370587]
[1740033247729,0.28367998,648.4,646.84,1.61253577]
[1740033247927,0.28367998,648.39,646.84,1.61253577]
[1740033248126,0.28367998,648.43,645.94,3.06370587]
[1740033248326,0.28367998,648.42,646.84,1.61253577]
[1740033248527,0.28367998,648.41,645.93,1.15253345]
[1740033248726,0.28367998,648.4,646.84,1.61253577]
[1740033248922,0.28367998,648.39,646.84,1.61253577]
[1740033249125,0.28367998,648.38,645.67,1.15253345]
[1740033249423,0.28367998,648.37,646.84,1.61253577]
[1740033249624,0.28367998,648.37,645.68,2.22195279]
[1740033249625,0.28367998,648.36,645.67,1.15253345]
[1740033249929,0.28367998,648.35,645.8,0.3096934]
[1740033250126,0.59216009,648.34,645.81,2.22048129]
[1740033250327,0.28367998,648.33,645.81,2.22048129]
[1740033250628,0.28367998,648.32,645.81,2.22048129]
[1740033250826,0.28367998,648.31,645.81,2.22048129]
[1740033251027,0.28367998,648.3,645.81,2.22048129]
[1740033251228,0.28367998,648.3,645.82,3.0561313]
[1740033251424,0.28367998,648.29,645.83,2.22048129]
[1740033251624,0.28367998,648.28,645.83,2.22048129]
[1740033251830,0.28367998,648.27,645.83,2.22048129]
[1740033252128,0.28367998,648.26,645.83,2.22048129]
[1740033252327,0.28367998,648.25,645.83,2.22048129]
[1740033252527,0.28367998,648.24,645.84,3.0561313]
[1740033252828,0.28367998,648.23,645.85,2.22048129]
[1740033253027,0.28367998,648.22,645.85,2.22048129]
[1740033253224,0.28367998,648.21,645.85,2.22048129]
[1740033253528,0.28367998,648.2,645.84,3.0561313]
[1740033253829,0.30855626,648.18,645.95,0.30962148]
[1740033254127,0.28367998,648.17,645.95,0.30962148]
[1740033254329,0.59224576,648.16,645.95,0.30962148]
[1740033254628,0.59225052,648.15,645.95,0.30962148]
[1740033254829,0.28372551,648.14,645.96,3.0561313]
[1740033255029,0.28372551,648.13,646.06,0.30956877]
[1740033255223,0.30858482,648.12,646.06,0.30956877]
[1740033255422,0.28372551,648.11,646.06,0.30956877]
[1740033256030,0.30859435,648.1,646.06,0.30956877]
[1740033256230,0.28372551,648.09,646.06,0.30956877]
[1740033257027,0.30860387,648.08,646.06,0.30956877]
[1740033257229,0.28372551,648.07,646.06,0.30956877]
[1740033258430,0.30861339,648.06,646.06,0.30956877]
[1740033258627,0.28372551,648.05,646.06,0.30956877]
[1740033259431,0.59234367,648.05,646.06,0.30956877]
[1740033259628,0.28372551,648.04,646.06,0.30956877]
[1740033261729,0.30861816,648.05,646.06,0.30956877]
[1740033262234,0.28373746,648.04,646.06,0.30956877]
[1740033263632,0.28373537,648.03,646.06,0.30956877]
[1740033263836,0.28373537,648.04,646.06,0.30956877]
[1740033272739,0.30862768,648.03,646.06,0.30956877]
[1740033273041,0.28373537,648.02,646.06,0.30956877]
[1740033273636,0.30863721,648.01,646.06,0.30956877]
[1740033273834,0.28373537,648.0,646.06,0.30956877]
[1740033274141,0.28375897,647.99,646.06,0.30956877]
[1740033274341,0.28375897,647.98,646.06,0.30956877]
[1740033274542,0.28375897,648.0,646.06,0.30956877]
[1740033277536,0.30863721,648.01,646.06,0.30956877]
[1740033277736,0.28370644,648.0,646.35,1.15253345]
[1740033277938,0.30863721,648.01,646.37,0.3094203]
[1740033282650,1.14469916,648.51,646.37,0.3094203]
[1740033282847,0.59202754,648.5,646.37,0.3094203]
[1740033283049,0.5920323,648.49,646.37,0.3094203]
[1740033283249,0.30841827,648.47,646.37,0.3094203]
[1740033283444,0.28362354,648.46,646.37,0.3094203]
[1740033283650,0.30843254,648.44,646.37,0.3094203]
[1740033283949,0.28362354,648.43,646.37,0.3094203]
[1740033284153,0.30844205,648.42,646.37,0.3094203]
[1740033284353,0.28362354,648.41,646.37,0.3094203]
[1740033284553,0.30845157,648.4,646.37,0.3094203]
[1740033284750,0.28362354,648.39,646.37,0.3094203]
[1740033284951,0.30846108,648.38,646.37,0.3094203]
[1740033285147,0.28362354,648.37,646.37,0.3094203]
[1740033285357,0.3084706,648.36,646.37,0.3094203]
[1740033285558,0.28362354,648.35,646.39,1.15253345]
[1740033286256,0.3084706,648.36,646.39,1.15253345]
[1740033286559,0.28365323,648.35,646.39,1.15253345]
[1740033286759,0.30848011,648.34,646.41,0.30940115]
[1740033286954,0.28365323,648.33,646.41,0.30940115]
[1740033287152,0.30848963,648.32,646.41,0.30940115]
[1740033287354,0.28365323,648.31,646.41,0.30940115]
[1740033287560,0.30849915,648.3,646.41,0.30940115]
[1740033287756,0.28365323,648.29,646.41,0.30940115]
[1740033287962,0.30850866,648.28,646.43,1.15253345]
[1740033288160,0.28365323,648.27,646.45,0.309382]
[1740033288357,0.30851818,648.26,646.45,0.309382]
[1740033288560,0.28365323,648.25,646.45,0.309382]
[1740033290263,0.28365323,648.25,646.5,1.15253345]
[1740033290463,0.28365323,648.25,646.52,0.30934851]
[1740033292660,0.30851818,648.26,646.53,1.15253345]
[1740033292864,0.30851818,648.26,646.55,0.30933415]
[1740033294466,0.28364327,648.25,646.55,0.30933415]
[1740033294662,0.28364327,648.25,646.56,1.15253345]
[1740033294864,0.30851818,648.26,646.56,1.15253345]
[1740033295061,0.30851818,648.26,646.58,0.3093198]
[1740033299367,0.28361789,648.25,646.59,2.23790944]
[1740033299563,0.28361789,648.25,646.6,3.08040098]
[1740033299761,0.28361789,648.25,646.61,2.23790944]
[1740033300665,0.28361789,648.25,646.6,4.23293443]
[1740033301065,0.28361789,648.25,646.6,1.15253345]
[1740033301467,0.28361789,648.25,646.62,0.30930067]
[1740033301867,0.30851818,648.26,646.62,0.30930067]
[1740033302265,0.28363203,648.25,646.72,1.15253345]
[1740033302463,0.28363203,648.25,646.74,0.30924328]
[1740033303770,0.28362874,648.24,646.74,0.30924328]
[1740033303970,0.28362874,648.23,646.74,0.30924328]
[1740033304172,0.28362874,648.25,646.74,0.30924328]
[1740033304466,0.28361892,648.24,646.74,0.30924328]
[1740033304670,0.28361892,648.23,646.74,0.30924328]
[1740033304971,0.28361892,648.22,646.74,0.30924328]
[1740033305169,0.30851818,648.26,646.74,0.30924328]
[1740033305170,0.28361892,648.21,646.74,0.30924328]
[1740033305370,0.30851818,648.26,646.74,0.30924328]
[1740033305569,0.28361824,648.25,646.74,0.30924328]
[1740033306568,0.28361824,648.25,646.78,1.15253345]
[1740033306770,0.28361824,648.25,646.8,0.30921459]
[1740033307173,0.30851818,648.26,646.8,0.30921459]
[1740033307374,0.28362569,648.25,646.8,0.30921459]